fUSD/lending_fUSD_20260516
["ID","MTS","AMOUNT","RATE_DAILY","PERIOD"]
[422426120,1778936108000,-151.0,0.00041999,120]
[422426121,1778936108000,-151.0,0.00041999,71]
[422426122,1778936108000,-184.91645914,0.00041999,30]
[422426123,1778936108000,-152.0,0.00041999,30]
[422426124,1778936108000,-152.0,0.00041999,59]
[422426119,1778936108000,-151.0,0.00041999,61]
[422426126,1778936108000,-152.0,0.00041999,61]
[422426129,1778936108000,-152.0,0.00041999,71]
[422426130,1778936108000,-219.23011724,0.00041999,61]
[422426134,1778936108000,-1000.0,0.00041999,71]
[422426133,1778936108000,-227.34163157,0.00041999,71]
[422426131,1778936108000,-1000.0,0.00041999,59]
[422426127,1778936108000,-211.40802048,0.00041999,59]
[422426155,1778936108000,-3661.66085085,0.00042,30]
[422426136,1778936108000,-944.66049918,0.00041999,93]
[422426183,1778936109000,-169.00035413,0.00042,30]
[422426193,1778936109000,-1000000.0,0.00042,120]
[422426186,1778936109000,-902.06691868,0.00042,31]
[422426189,1778936109000,-1000.0,0.00042,120]
[422426188,1778936109000,-350.0,0.00042,120]
[422426184,1778936109000,-523.74817418,0.00042,31]
[422426190,1778936109000,-1000.0,0.00042,120]
[422426185,1778936109000,-517.0,0.00042,30]
[422426195,1778936109000,-1000000.0,0.00042,120]
[422426191,1778936109000,-1036.0,0.00042,30]
[422426196,1778936109000,-1000000.0,0.00042,120]
[422426207,1778936109000,-1000000.0,0.00042,120]
[422426198,1778936109000,-1000000.0,0.00042,120]
[422426194,1778936109000,-1000000.0,0.00042,120]
[422426202,1778936109000,-1000000.0,0.00042,120]
[422426201,1778936109000,-1000000.0,0.00042,120]
[422426199,1778936109000,-1000000.0,0.00042,120]
[422426203,1778936109000,-1000000.0,0.00042,120]
[422426204,1778936109000,-1000000.0,0.00042,120]
[422426206,1778936109000,-1000000.0,0.00042,120]
[422426209,1778936109000,-1000000.0,0.00042,120]
[422426210,1778936109000,-1000000.0,0.00042,120]
[422426192,1778936109000,-950.0,0.00042,2]
[422426200,1778936109000,-1000000.0,0.00042,120]
[422426187,1778936109000,-300.0,0.00042,30]
[422426159,1778936109000,-500.0,0.00042,45]
[422426182,1778936109000,-1168.31690257,0.00042,120]
[422426157,1778936109000,-500.0,0.00042,45]
[422426158,1778936109000,-261.54,0.00042,120]
[422426160,1778936109000,-500.0,0.00042,45]
[422426169,1778936109000,-364.08594606,0.00042,120]
[422426162,1778936109000,-2631.2889264,0.00042,120]
[422426208,1778936109000,-1000000.0,0.00042,120]
[422426161,1778936109000,-500.0,0.00042,45]
[422426163,1778936109000,-500.0,0.00042,45]
[422426167,1778936109000,-500.0,0.00042,45]
[422426165,1778936109000,-500.0,0.00042,45]
[422426168,1778936109000,-661.50416645,0.00042,120]
[422426181,1778936109000,-707.88763735,0.00042,120]
[422426164,1778936109000,-500.0,0.00042,45]
[422426170,1778936109000,-4785.66806484,0.00042,120]
[422426173,1778936109000,-1088.7678658,0.00042,120]
[422426172,1778936109000,-747.44464742,0.00042,120]
[422426178,1778936109000,-1802.93591499,0.00042,120]
[422426174,1778936109000,-191.74552264,0.00042,120]
[422426180,1778936109000,-466.81561414,0.00042,120]
[422426175,1778936109000,-1108.64931215,0.00042,120]
[422426171,1778936109000,-2500.0,0.00042,120]
[422426176,1778936109000,-200.40253316,0.00042,30]
[422426177,1778936109000,-2912.59870443,0.00042,120]
[422426179,1778936109000,-2293.86307068,0.00042,120]
[422426166,1778936109000,-500.0,0.00042,45]
[422426205,1778936109000,-1000000.0,0.00042,120]
[422426197,1778936109000,-1000000.0,0.00042,120]
[422426212,1778936109000,-1000000.0,0.00042,120]
[422426241,1778936109000,-6313.97,0.00042092,2]
[422426242,1778936109000,-150.0,0.00042095,120]
[422426240,1778936109000,-831.0,0.00042088,18]
[422426243,1778936109000,-246.45,0.0004212,30]
[422426246,1778936109000,-412.0,0.0004219,120]
[422426245,1778936109000,-844.40420203,0.00042189,7]
[422426248,1778936109000,-360.47659529,0.00042191,120]
[422426247,1778936109000,-666.0,0.00042191,120]
[422426250,1778936109000,-200.0,0.00042199,60]
[422426252,1778936109000,-151.0,0.00042199,60]
[422426254,1778936109000,-174.61919141,0.00042199,60]
[422426244,1778936109000,-209.52324218,0.00042121,120]
[422426253,1778936109000,-500.0,0.00042199,60]
[422426255,1778936109000,-200.0,0.00042199,60]
[422426256,1778936109000,-601.3376128,0.00042199,60]
[422426259,1778936109000,-151.0,0.00042199,60]
[422426258,1778936109000,-358.02257958,0.00042199,60]
[422426262,1778936109000,-174.61919141,0.00042199,60]
[422426260,1778936109000,-716.97946142,0.00042199,60]
[422426263,1778936109000,-152.0,0.00042199,60]
[422426257,1778936109000,-500.0,0.00042199,60]
[422426261,1778936109000,-151.0,0.00042199,60]
[422426264,1778936109000,-196.59114265,0.00042199,60]
[422426211,1778936109000,-1000000.0,0.00042,120]
[422426251,1778936109000,-1191.11104075,0.00042199,60]
[422426238,1778936109000,-150.0,0.00042074,120]
[422426249,1778936109000,-500.0,0.00042199,60]
[422426235,1778936109000,-1383.5714372,0.0004201,2]
[422426213,1778936109000,-1000000.0,0.00042,120]
[422426239,1778936109000,-330.0,0.00042081,94]
[422426216,1778936109000,-1000000.0,0.00042,120]
[422426215,1778936109000,-1000000.0,0.00042,120]
[422426221,1778936109000,-1000000.0,0.00042,120]
[422426218,1778936109000,-1000000.0,0.00042,120]
[422426214,1778936109000,-1000000.0,0.00042,120]
[422426219,1778936109000,-1000000.0,0.00042,120]
[422426220,1778936109000,-1000000.0,0.00042,120]
[422426217,1778936109000,-1000000.0,0.00042,120]
[422426222,1778936109000,-1000000.0,0.00042,120]
[422426227,1778936109000,-1000000.0,0.00042,120]
[422426223,1778936109000,-1000000.0,0.00042,120]
[422426231,1778936109000,-1000000.0,0.00042,120]
[422426237,1778936109000,-9083.02950026,0.0004205,2]
[422426224,1778936109000,-1000000.0,0.00042,120]
[422426225,1778936109000,-1000000.0,0.00042,120]
[422426230,1778936109000,-1000000.0,0.00042,120]
[422426233,1778936109000,-1498775.0,0.00042,120]
[422426228,1778936109000,-1000000.0,0.00042,120]
[422426226,1778936109000,-1000000.0,0.00042,120]
[422426234,1778936109000,-287.9,0.0004201,120]
[422426229,1778936109000,-1000000.0,0.00042,120]
[422426232,1778936109000,-1000000.0,0.00042,120]
[422426236,1778936109000,-1000.0,0.00042018,120]
[422426303,1778936110000,-168.3888056,0.00042299,90]
[422426307,1778936110000,-2500.0,0.000423,120]
[422426304,1778936110000,-168.3888056,0.00042299,90]
[422426305,1778936110000,-557.5788265,0.00042299,90]
[422426298,1778936110000,-168.0031262,0.00042299,90]
[422426301,1778936110000,-189.57680101,0.00042299,90]
[422426294,1778936110000,-220.0,0.00042299,90]
[422426302,1778936110000,-1000.0,0.00042299,90]
[422426295,1778936110000,-151.0,0.00042299,90]
[422426313,1778936110000,-151.0,0.00042344,120]
[422426297,1778936110000,-151.0,0.00042299,90]
[422426300,1778936110000,-152.0,0.00042299,90]
[422426309,1778936110000,-2042.54,0.0004231,120]
[422426316,1778936110000,-537.6845,0.00042344,120]
[422426310,1778936110000,-200.0,0.00042341,120]
[422426306,1778936110000,-151.0,0.00042299,90]
[422426311,1778936110000,-500.0,0.00042344,120]
[422426312,1778936110000,-1107.63007,0.00042344,120]
[422426314,1778936110000,-200.0,0.00042344,120]
[422426322,1778936110000,-151.0,0.00042344,120]
[422426317,1778936110000,-200.0,0.00042344,120]
[422426324,1778936110000,-151.0,0.00042344,120]
[422426325,1778936110000,-160.0,0.00042344,120]
[422426321,1778936110000,-220.0,0.00042344,120]
[422426319,1778936110000,-559.19188,0.00042344,120]
[422426296,1778936110000,-691.39774486,0.00042299,90]
[422426308,1778936110000,-182.77708309,0.000423,120]
[422426299,1778936110000,-168.3888056,0.00042299,90]
[422426267,1778936110000,-578.20924308,0.00042199,60]
[422426293,1778936110000,-500.0,0.00042299,90]
[422426323,1778936110000,-666.72878,0.00042344,120]
[422426266,1778936110000,-174.61919141,0.00042199,60]
[422426265,1778936110000,-1000.0,0.00042199,60]
[422426268,1778936110000,-151.0,0.00042199,60]
[422426270,1778936110000,-40257.39,0.000422,14]
[422426269,1778936110000,-5720.69620134,0.000422,2]
[422426272,1778936110000,-189.799999,0.000422,60]
[422426277,1778936110000,-1000.0,0.00042224,120]
[422426273,1778936110000,-264.8,0.000422,60]
[422426276,1778936110000,-118923.83342053,0.0004222,3]
[422426271,1778936110000,-160.0,0.000422,60]
[422426279,1778936110000,-1505.57,0.0004225,120]
[422426275,1778936110000,-360.0,0.000422,60]
[422426274,1778936110000,-211.0,0.000422,120]
[422426278,1778936110000,-120646.92022068,0.00042236,2]
[422426283,1778936110000,-3508.05,0.00042291,7]
[422426280,1778936110000,-255.88,0.0004225,120]
[422426290,1778936110000,-557.5788265,0.00042299,90]
[422426281,1778936110000,-1921.66445885,0.00042275,120]
[422426288,1778936110000,-500.0,0.00042299,90]
[422426286,1778936110000,-1148.61238259,0.00042299,90]
[422426287,1778936110000,-151.0,0.00042299,90]
[422426282,1778936110000,-6314.5,0.00042291,7]
[422426289,1778936110000,-168.3888056,0.00042299,90]
[422426284,1778936110000,-500.0,0.00042299,90]
[422426291,1778936110000,-200.0,0.00042299,90]
[422426285,1778936110000,-200.0,0.00042299,90]
[422426292,1778936110000,-579.88197956,0.00042299,90]
[422426326,1778936110000,-162.380719,0.00042344,120]
[422426371,1778936110000,-3276.57,0.000424,120]
[422426315,1778936110000,-500.0,0.00042344,120]
[422426355,1778936110000,-699.81021264,0.00042395,7]
[422426359,1778936110000,-748.2382104,0.00042395,7]
[422426358,1778936110000,-1217.7977951,0.00042395,7]
[422426363,1778936110000,-623.82785897,0.00042395,7]
[422426362,1778936110000,-1872.3599923,0.00042395,7]
[422426364,1778936110000,-693.37777575,0.00042395,7]
[422426365,1778936110000,-678.10806185,0.00042395,7]
[422426361,1778936110000,-334.12314435,0.00042395,2]
[422426360,1778936110000,-480.6333897,0.00042395,7]
[422426366,1778936110000,-166.88303147,0.00042395,7]
[422426368,1778936110000,-612.77308899,0.00042396,7]
[422426369,1778936110000,-3276.571,0.000424,120]
[422426354,1778936110000,-150.0,0.00042383,120]
[422426370,1778936110000,-3276.571,0.000424,120]
[422426374,1778936110000,-1085.28739991,0.0004245,120]
[422426376,1778936110000,-727.0,0.00042466,120]
[422426375,1778936110000,-161.27417977,0.00042465,120]
[422426373,1778936110000,-100380.0,0.000424,30]
[422426378,1778936110000,-159.87016904,0.00042466,120]
[422426377,1778936110000,-159.87016905,0.00042466,120]
[422426380,1778936110000,-2576.16,0.00042468,120]
[422426379,1778936110000,-2576.16,0.00042468,120]
[422426382,1778936110000,-2576.16,0.00042468,120]
[422426381,1778936110000,-2576.16,0.00042468,120]
[422426318,1778936110000,-162.380719,0.00042344,120]
[422426383,1778936110000,-287.9,0.0004249,120]
[422426372,1778936110000,-18177.2569,0.000424,90]
[422426357,1778936110000,-707.91151493,0.00042395,7]
[422426367,1778936110000,-167.64077052,0.00042395,7]
[422426353,1778936110000,-159.8992,0.00042359,7]
[422426320,1778936110000,-500.0,0.00042344,120]
[422426356,1778936110000,-792.67355481,0.00042395,7]
[422426327,1778936110000,-152.0,0.00042344,120]
[422426339,1778936110000,-159.8992,0.00042357,7]
[422426331,1778936110000,-162.380719,0.00042344,120]
[422426338,1778936110000,-159.8992,0.00042355,7]
[422426330,1778936110000,-162.380719,0.00042344,120]
[422426337,1778936110000,-302.0,0.00042355,120]
[422426334,1778936110000,-151.0,0.00042344,120]
[422426332,1778936110000,-537.6845,0.00042344,120]
[422426336,1778936110000,-159.8992,0.00042354,7]
[422426329,1778936110000,-1000.0,0.00042344,120]
[422426333,1778936110000,-269.917619,0.00042344,120]
[422426335,1778936110000,-1450.4,0.00042347,120]
[422426328,1778936110000,-182.81273,0.00042344,120]
[422426350,1778936110000,-159.8992,0.00042357,7]
[422426341,1778936110000,-448.61468023,0.00042357,7]
[422426349,1778936110000,-367.25610938,0.00042357,7]
[422426344,1778936110000,-159.8992,0.00042357,7]
[422426345,1778936110000,-159.8992,0.00042357,7]
[422426347,1778936110000,-159.8992,0.00042357,7]
[422426346,1778936110000,-300.47724667,0.00042357,7]
[422426348,1778936110000,-159.8992,0.00042357,7]
[422426342,1778936110000,-159.8992,0.00042357,7]
[422426351,1778936110000,-159.8992,0.00042358,7]
[422426340,1778936110000,-159.8992,0.00042357,7]
[422426352,1778936110000,-159.8992,0.00042359,7]
[422426343,1778936110000,-159.8992,0.00042357,7]
[422426422,1778936111000,-150.0,0.00042724,120]
[422426425,1778936111000,-1000.0,0.0004274,120]
[422426419,1778936111000,-200000.0,0.000427,120]
[422426424,1778936111000,-4000.0,0.0004274,14]
[422426421,1778936111000,-200000.0,0.000427,120]
[422426438,1778936111000,-1000.0,0.0004274,120]
[422426414,1778936111000,-2000.0,0.000426,7]
[422426420,1778936111000,-200000.0,0.000427,120]
[422426417,1778936111000,-410.518919,0.00042693,82]
[422426418,1778936111000,-152.0,0.000427,120]
[422426416,1778936111000,-150.0,0.00042659,120]
[422426423,1778936111000,-150.0,0.0004273,120]
[422426435,1778936111000,-1000.0,0.0004274,120]
[422426427,1778936111000,-1000.0,0.0004274,120]
[422426426,1778936111000,-1000.0,0.0004274,120]
[422426429,1778936111000,-1000.0,0.0004274,120]
[422426428,1778936111000,-1000.0,0.0004274,120]
[422426432,1778936111000,-1000.0,0.0004274,120]
[422426431,1778936111000,-1000.0,0.0004274,120]
[422426430,1778936111000,-1000.0,0.0004274,120]
[422426434,1778936111000,-1000.0,0.0004274,120]
[422426436,1778936111000,-1000.0,0.0004274,120]
[422426440,1778936111000,-1000.0,0.0004274,120]
[422426439,1778936111000,-1000.0,0.0004274,120]
[422426441,1778936111000,-1000.0,0.0004274,120]
[422426415,1778936111000,-831.0,0.00042622,18]
[422426433,1778936111000,-1000.0,0.0004274,120]
[422426413,1778936111000,-2500.0,0.000426,120]
[422426388,1778936111000,-500.0,0.000425,45]
[422426402,1778936111000,-983.0,0.00042518,120]
[422426447,1778936111000,-1000.0,0.0004274,120]
[422426386,1778936111000,-500.0,0.000425,45]
[422426384,1778936111000,-251.0015828,0.000425,25]
[422426385,1778936111000,-1006.83,0.000425,2]
[422426387,1778936111000,-500.0,0.000425,45]
[422426390,1778936111000,-500.0,0.000425,45]
[422426389,1778936111000,-500.0,0.000425,45]
[422426391,1778936111000,-500.0,0.000425,45]
[422426392,1778936111000,-500.0,0.000425,45]
[422426394,1778936111000,-500.0,0.000425,45]
[422426393,1778936111000,-500.0,0.000425,45]
[422426396,1778936111000,-500.0,0.000425,45]
[422426395,1778936111000,-500.0,0.000425,45]
[422426397,1778936111000,-16120.6340607,0.000425,30]
[422426399,1778936111000,-724.0,0.00042518,120]
[422426398,1778936111000,-150.0,0.00042502,2]
[422426401,1778936111000,-3684.0,0.00042518,120]
[422426411,1778936111000,-500.0,0.00042588,120]
[422426412,1778936111000,-211.0,0.000426,120]
[422426400,1778936111000,-2452.0,0.00042518,120]
[422426405,1778936111000,-150.0,0.00042524,120]
[422426406,1778936111000,-218.40099809,0.0004257,120]
[422426403,1778936111000,-1029.0,0.00042518,120]
[422426408,1778936111000,-500.0,0.00042575,120]
[422426409,1778936111000,-330.0,0.00042582,99]
[422426404,1778936111000,-500.0,0.00042518,120]
[422426407,1778936111000,-151.0,0.00042575,60]
[422426410,1778936111000,-500.0,0.00042588,120]
[422426437,1778936111000,-1000.0,0.0004274,120]
[422426488,1778936111000,-1000.0,0.0004274,120]
[422426444,1778936111000,-1000.0,0.0004274,120]
[422426484,1778936111000,-1000.0,0.0004274,120]
[422426475,1778936111000,-1000.0,0.0004274,120]
[422426482,1778936111000,-1000.0,0.0004274,120]
[422426483,1778936111000,-1000.0,0.0004274,120]
[422426480,1778936111000,-1000.0,0.0004274,120]
[422426479,1778936111000,-1000.0,0.0004274,120]
[422426478,1778936111000,-1000.0,0.0004274,120]
[422426476,1778936111000,-1000.0,0.0004274,120]
[422426481,1778936111000,-1000.0,0.0004274,120]
[422426485,1778936111000,-1000.0,0.0004274,120]
[422426487,1778936111000,-1000.0,0.0004274,120]
[422426490,1778936111000,-1000.0,0.0004274,120]
[422426496,1778936111000,-1000.0,0.0004274,120]
[422426491,1778936111000,-1000.0,0.0004274,120]
[422426489,1778936111000,-1000.0,0.0004274,120]
[422426486,1778936111000,-1000.0,0.0004274,120]
[422426497,1778936111000,-1000.0,0.0004274,120]
[422426492,1778936111000,-1000.0,0.0004274,120]
[422426494,1778936111000,-1000.0,0.0004274,120]
[422426495,1778936111000,-1000.0,0.0004274,120]
[422426493,1778936111000,-1000.0,0.0004274,120]
[422426499,1778936111000,-1000.0,0.0004274,120]
[422426503,1778936111000,-1000.0,0.0004274,120]
[422426501,1778936111000,-1000.0,0.0004274,120]
[422426502,1778936111000,-1000.0,0.0004274,120]
[422426498,1778936111000,-1000.0,0.0004274,120]
[422426500,1778936111000,-1000.0,0.0004274,120]
[422426477,1778936111000,-1000.0,0.0004274,120]
[422426473,1778936111000,-1000.0,0.0004274,120]
[422426442,1778936111000,-1000.0,0.0004274,120]
[422426471,1778936111000,-1000.0,0.0004274,120]
[422426443,1778936111000,-1000.0,0.0004274,120]
[422426446,1778936111000,-1000.0,0.0004274,120]
[422426445,1778936111000,-1000.0,0.0004274,120]
[422426449,1778936111000,-1000.0,0.0004274,120]
[422426448,1778936111000,-1000.0,0.0004274,120]
[422426459,1778936111000,-1000.0,0.0004274,120]
[422426460,1778936111000,-1000.0,0.0004274,120]
[422426474,1778936111000,-1000.0,0.0004274,120]
[422426450,1778936111000,-1000.0,0.0004274,120]
[422426455,1778936111000,-1000.0,0.0004274,120]
[422426456,1778936111000,-1000.0,0.0004274,120]
[422426452,1778936111000,-1000.0,0.0004274,120]
[422426453,1778936111000,-1000.0,0.0004274,120]
[422426451,1778936111000,-1000.0,0.0004274,120]
[422426457,1778936111000,-1000.0,0.0004274,120]
[422426454,1778936111000,-1000.0,0.0004274,120]
[422426468,1778936111000,-1000.0,0.0004274,120]
[422426472,1778936111000,-1000.0,0.0004274,120]
[422426469,1778936111000,-1000.0,0.0004274,120]
[422426462,1778936111000,-1000.0,0.0004274,120]
[422426466,1778936111000,-1000.0,0.0004274,120]
[422426470,1778936111000,-1000.0,0.0004274,120]
[422426467,1778936111000,-1000.0,0.0004274,120]
[422426465,1778936111000,-1000.0,0.0004274,120]
[422426463,1778936111000,-1000.0,0.0004274,120]
[422426461,1778936111000,-1000.0,0.0004274,120]
[422426458,1778936111000,-1000.0,0.0004274,120]
[422426464,1778936111000,-1000.0,0.0004274,120]
[422426547,1778936112000,-214.0,0.00043,7]
[422426544,1778936112000,-263.79705615,0.00043,7]
[422426543,1778936112000,-263.79705615,0.00043,7]
[422426540,1778936112000,-1057.94289116,0.00042999,120]
[422426545,1778936112000,-229.98733204,0.00043,7]
[422426539,1778936112000,-232.96077135,0.0004299,60]
[422426541,1778936112000,-1000.0,0.00042999,120]
[422426536,1778936112000,-594.0,0.00042988,120]
[422426537,1778936112000,-1918.0,0.00042988,120]
[422426542,1778936112000,-168.63,0.00043,14]
[422426538,1778936112000,-340.0,0.00042988,120]
[422426546,1778936112000,-229.98733204,0.00043,7]
[422426558,1778936112000,-2500.0,0.00043,30]
[422426553,1778936112000,-211.0,0.00043,120]
[422426552,1778936112000,-1450.4,0.00043,120]
[422426548,1778936112000,-181.9429298,0.00043,7]
[422426554,1778936112000,-804.77689285,0.00043,120]
[422426550,1778936112000,-57783.00236228,0.00043,7]
[422426549,1778936112000,-181.9429298,0.00043,7]
[422426555,1778936112000,-765.53990726,0.00043,120]
[422426556,1778936112000,-571.69256714,0.00043,120]
[422426557,1778936112000,-206.20969687,0.00043,120]
[422426559,1778936112000,-158.0,0.00043,120]
[422426561,1778936112000,-500.0,0.00043,120]
[422426568,1778936112000,-847.63507731,0.0004301,7]
[422426535,1778936112000,-1043.0,0.00042988,120]
[422426551,1778936112000,-5000.0,0.00043,21]
[422426532,1778936112000,-249.0,0.00042975,120]
[422426516,1778936112000,-288.427971,0.00042797,83]
[422426530,1778936112000,-500.0,0.00042972,67]
[422426562,1778936112000,-884.88939366,0.0004301,7]
[422426509,1778936112000,-1000.0,0.0004274,120]
[422426504,1778936112000,-1000.0,0.0004274,120]
[422426508,1778936112000,-1000.0,0.0004274,120]
[422426505,1778936112000,-1000.0,0.0004274,120]
[422426506,1778936112000,-1000.0,0.0004274,120]
[422426507,1778936112000,-1000.0,0.0004274,120]
[422426513,1778936112000,-286.427408,0.00042741,82]
[422426511,1778936112000,-1000.0,0.0004274,120]
[422426515,1778936112000,-500.0,0.00042788,120]
[422426520,1778936112000,-150.0,0.00042834,2]
[422426519,1778936112000,-10423.08130751,0.0004282,2]
[422426512,1778936112000,-1529.22332822,0.0004274,120]
[422426514,1778936112000,-235.75,0.00042771,30]
[422426521,1778936112000,-291.428492,0.00042849,84]
[422426522,1778936112000,-2257.02407477,0.0004287,5]
[422426518,1778936112000,-487.91996175,0.000428,90]
[422426517,1778936112000,-154.89200222,0.000428,120]
[422426524,1778936112000,-330.0,0.000429,104]
[422426534,1778936112000,-1314.0,0.00042988,120]
[422426523,1778936112000,-468.84573007,0.00042887,30]
[422426529,1778936112000,-153.11,0.0004294,120]
[422426525,1778936112000,-2500.0,0.000429,120]
[422426533,1778936112000,-287.9,0.0004298,120]
[422426526,1778936112000,-1035.78528522,0.000429,120]
[422426531,1778936112000,-1044.0,0.00042975,120]
[422426527,1778936112000,-1461.58952271,0.000429,120]
[422426528,1778936112000,-167.1,0.000429,120]
[422426510,1778936112000,-1000.0,0.0004274,120]
[422426565,1778936112000,-2340.44999038,0.0004301,7]
[422426560,1778936112000,-1000.0,0.00043,30]
[422426598,1778936112000,-793.96780527,0.00043314,120]
[422426606,1778936112000,-330.0,0.00043396,118]
[422426599,1778936112000,-493.66265648,0.00043315,120]
[422426597,1778936112000,-330.0,0.00043311,115]
[422426607,1778936112000,-152.0,0.000434,120]
[422426600,1778936112000,-210.09156922,0.00043315,120]
[422426602,1778936112000,-1077.9780321,0.0004333,120]
[422426601,1778936112000,-492.04348299,0.00043315,120]
[422426603,1778936112000,-150.0,0.00043333,120]
[422426605,1778936112000,-330.0,0.00043363,117]
[422426604,1778936112000,-500.0,0.00043342,120]
[422426612,1778936112000,-330.0,0.00043438,119]
[422426610,1778936112000,-330.0,0.0004343,119]
[422426611,1778936112000,-150.0,0.00043434,120]
[422426618,1778936112000,-330.0,0.0004345,120]
[422426614,1778936112000,-330.0,0.00043447,120]
[422426609,1778936112000,-330.0,0.00043417,119]
[422426616,1778936112000,-1000.0,0.00043449,120]
[422426617,1778936112000,-330.0,0.00043449,120]
[422426615,1778936112000,-150.0,0.00043448,120]
[422426613,1778936112000,-330.0,0.00043443,120]
[422426619,1778936112000,-330.0,0.00043451,120]
[422426621,1778936112000,-330.0,0.00043452,120]
[422426620,1778936112000,-330.0,0.00043452,120]
[422426622,1778936112000,-330.0,0.00043452,120]
[422426623,1778936112000,-442.01,0.00043452,120]
[422426566,1778936112000,-779.78482372,0.0004301,7]
[422426595,1778936112000,-150.0,0.00043276,120]
[422426596,1778936112000,-2059.04876775,0.000433,120]
[422426608,1778936112000,-211.0,0.000434,120]
[422426590,1778936112000,-346.32,0.00043253,120]
[422426592,1778936112000,-346.32,0.00043253,120]
[422426567,1778936112000,-866.72221969,0.0004301,7]
[422426563,1778936112000,-1522.24724388,0.0004301,7]
[422426570,1778936112000,-1000.0,0.00043018,120]
[422426580,1778936112000,-160.0,0.000432,64]
[422426581,1778936112000,-160.0,0.000432,64]
[422426571,1778936112000,-205.29649446,0.00043022,120]
[422426572,1778936112000,-1092.6683,0.000431,90]
[422426573,1778936112000,-1543.43240173,0.000431,120]
[422426569,1778936112000,-839.62989673,0.0004301,7]
[422426579,1778936112000,-160.0,0.000432,64]
[422426575,1778936112000,-1013.28504244,0.00043112,7]
[422426574,1778936112000,-330.0,0.00043102,109]
[422426578,1778936112000,-150.0,0.00043191,120]
[422426564,1778936112000,-935.297763,0.0004301,7]
[422426576,1778936112000,-150.0,0.00043116,120]
[422426577,1778936112000,-831.0,0.00043156,19]
[422426588,1778936112000,-346.32,0.00043253,120]
[422426594,1778936112000,-346.36617203,0.00043253,120]
[422426587,1778936112000,-346.32,0.00043253,120]
[422426593,1778936112000,-346.32,0.00043253,120]
[422426584,1778936112000,-330.0,0.0004323,112]
[422426591,1778936112000,-346.32,0.00043253,120]
[422426586,1778936112000,-346.32,0.00043253,120]
[422426589,1778936112000,-346.32,0.00043253,120]
[422426582,1778936112000,-2500.0,0.000432,120]
[422426583,1778936112000,-168.85421047,0.00043214,60]
[422426585,1778936112000,-346.32,0.00043253,120]
[422426667,1778936113000,-935.74178846,0.00043934,7]
[422426662,1778936113000,-216.0,0.00043919,30]
[422426656,1778936113000,-2667.56,0.000439,120]
[422426663,1778936113000,-1061.8672724,0.00043934,7]
[422426658,1778936113000,-6736.51,0.000439,120]
[422426664,1778936113000,-1826.69669266,0.00043934,7]
[422426657,1778936113000,-1310.69,0.000439,120]
[422426660,1778936113000,-275.0,0.00043915,30]
[422426659,1778936113000,-100000.0,0.000439,120]
[422426661,1778936113000,-150.0,0.00043919,30]
[422426677,1778936113000,-1918.0,0.00043988,120]
[422426665,1778936113000,-1122.3573156,0.00043934,7]
[422426678,1778936113000,-340.0,0.00043988,120]
[422426671,1778936113000,-287.9,0.0004394,120]
[422426668,1778936113000,-1040.06666362,0.00043934,7]
[422426669,1778936113000,-1017.16209277,0.00043934,7]
[422426674,1778936113000,-1314.0,0.00043988,120]
[422426676,1778936113000,-594.0,0.00043988,120]